bitfinex/quotes_ETHUSD_20241030
["timestamp","ask_amount","ask_price","bid_price","bid_amount"]
[1730314974724,0.06991168,2667.7,2667.3,0.456084]
[1730314975525,0.06991168,2667.7,2667.3,3.74903]
[1730314975868,0.06991168,2667.7,2667.0,3.74939]
[1730314976159,3.81846168,2667.7,2667.0,3.74939]
[1730314976360,0.06991168,2667.7,2667.2,3.74916]
[1730314976560,3.74876,2667.6,2667.1,3.7493]
[1730314976725,0.06991168,2667.5,2667.1,3.7493]
[1730314977661,3.74859,2667.7,2667.1,3.7493]
[1730314977819,3.81861168,2667.6,2667.1,7.49859]
[1730314978344,0.06991168,2667.6,2667.1,7.49858]
[1730314978545,0.06991168,2667.6,2667.1,7.4986]
[1730314978942,0.06991168,2667.6,2667.2,3.74922]
[1730314979428,0.06991168,2667.6,2667.1,3.74929]
[1730314979629,0.06991168,2667.6,2667.1,7.4986]
[1730314979938,0.06991168,2667.6,2667.2,3.74923]
[1730314980158,3.81866168,2667.6,2667.1,3.74929]
[1730314980367,4.51603,2667.5,2666.9,3.74958]
[1730314980670,0.06991168,2667.4,2667.0,3.74953]
[1730314980831,0.06991168,2667.4,2667.1,3.74936]
[1730314981037,0.7671,2667.5,2667.1,3.74931]
[1730314981623,0.7671,2667.5,2667.2,3.74916]
[1730314982171,0.7671,2667.5,2666.8,0.8229]
[1730314982472,0.7671,2667.5,2667.1,3.74935]
[1730314982678,0.7671,2667.5,2667.2,3.74917]
[1730314983640,0.7671,2667.5,2667.3,3.7491]
[1730314983845,0.85141168,2667.8,2667.4,3.74896]
[1730314984730,4.59981168,2667.8,2667.4,3.74896]
[1730314985136,0.85141168,2667.8,2667.4,7.49784]
[1730314986067,4.59983168,2667.8,2667.4,3.74888]
[1730314986287,4.59983168,2667.8,2667.3,3.7491]
[1730314986430,0.85141168,2667.8,2667.5,3.7488]
[1730314986766,0.85141168,2667.8,2667.4,3.74895]
[1730314988343,0.85141168,2667.8,2667.5,3.74882]
[1730314988929,0.85141168,2668.1,2667.7,3.74848]
[1730314989128,0.7815,2668.1,2667.7,4.123328]
[1730314989370,0.7815,2668.1,2667.8,3.74839]
[1730314989774,0.85141168,2668.1,2667.7,7.871788]
[1730314990070,3.74819,2668.0,2667.5,3.74881]
[1730314990271,0.06991168,2667.9,2667.5,3.74881]
[1730314990675,3.81826168,2667.9,2667.4,6.7489]
[1730314991474,0.06991168,2667.9,2667.5,3.74872]
[1730314991630,0.06991168,2667.9,2667.5,7.49747]
[1730314991829,0.06991168,2667.9,2667.6,3.74866]
[1730314992032,3.81804168,2668.0,2667.6,3.74866]
[1730314993003,3.81804168,2668.0,2667.5,3.74872]
[1730314993004,3.74828,2667.9,2667.5,3.7488]
[1730314993179,0.06991168,2667.8,2667.5,3.7488]
[1730314993791,3.74828,2667.9,2667.5,3.7488]
[1730314994503,0.06991168,2667.8,2667.5,3.7488]
[1730314994695,4.40166989,2667.9,2667.2,3.74924]
[1730314994865,3.74861,2667.7,2667.2,3.74924]
[1730314995210,4.53038,2667.5,2667.0,3.74948]
[1730314995363,4.53038,2667.5,2667.0,4.0]
[1730314995364,0.7815,2667.5,2667.0,4.0]
[1730314995714,0.7815,2667.1,2666.7,3.74993]
[1730314995892,0.06991168,2667.0,2666.7,3.74993]
[1730314996895,0.06991168,2667.0,2666.5,3.75019]
[1730314996896,3.81952168,2667.0,2666.5,3.75019]
[1730314997209,0.06991168,2667.0,2666.6,3.75008]
[1730314997806,0.06991168,2667.0,2666.7,3.74981]
[1730314997995,0.06991168,2667.0,2666.8,3.74979]
[1730314998711,0.06991168,2667.0,2666.7,7.49967]
[1730314999011,0.06991168,2667.0,2666.7,3.74981]
[1730314999180,3.81944168,2667.0,2666.5,3.75019]
[1730314999383,0.7815,2666.9,2666.3,3.75043]
[1730314999587,3.75,2666.7,2666.3,3.75043]
[1730314999914,3.74992,2666.8,2666.4,3.75035]
[1730315000072,0.06991168,2666.7,2666.4,3.75035]
[1730315000267,0.06991168,2666.7,2666.3,3.75043]
[1730315000507,0.7815,2666.6,2666.1,3.75071]
[1730315000709,0.7815,2666.3,2665.8,3.75121]
[1730315000911,0.7815,2666.3,2665.5,0.8234]
[1730315000912,0.85141168,2666.3,2665.9,7.75105]
[1730315001098,0.85141168,2666.3,2666.0,3.75086]
[1730315001502,0.06991168,2666.6,2666.3,3.75044]
[1730315001673,0.06991168,2666.6,2666.4,3.75036]
[1730315001985,0.06991168,2666.6,2666.3,3.75048]
[1730315002512,0.06991168,2666.6,2666.2,3.75063]
[1730315002807,0.06991168,2666.6,2666.3,3.75051]
[1730315003503,0.06991168,2666.6,2666.3,7.50094]
[1730315003706,0.06991168,2666.6,2666.3,3.75043]
[1730315003907,0.06991168,2666.6,2666.3,3.7504]
[1730315004214,0.06991168,2666.6,2666.4,3.75035]
[1730315005074,0.06991168,2666.6,2666.3,3.7504]
[1730315005610,0.06991168,2666.6,2666.4,3.75036]
[1730315006624,0.06991168,2666.6,2666.2,3.75059]
[1730315006912,3.82001168,2666.6,2666.2,3.75059]
[1730315007710,0.06991168,2666.6,2666.3,3.75041]
[1730315008469,0.06991168,2666.6,2666.2,3.75059]
[1730315009070,0.06991168,2666.6,2666.2,7.50116]
[1730315009333,0.06991168,2666.6,2666.2,3.75057]
[1730315009677,0.06991168,2666.6,2666.2,7.50114]
[1730315010330,0.7815,2666.3,2665.5,6.75155]
[1730315010612,0.7815,2666.3,2665.4,0.8234]
[1730315010613,3.82056168,2666.2,2665.8,7.7512]
[1730315010821,3.82056168,2666.2,2665.7,3.75134]
[1730315010822,0.06991168,2666.2,2665.7,3.75134]
[1730315011175,0.06991168,2666.2,2665.8,3.7511]
[1730315011990,3.82058168,2666.2,2665.5,3.75156]
[1730315012189,0.7815,2666.1,2665.6,3.75136]
[1730315013115,0.7815,2666.1,2665.5,3.75156]
[1730315013116,4.5323,2666.1,2665.5,3.75156]
[1730315013316,4.5323,2666.1,2665.5,8.27352583]
[1730315013491,0.7815,2666.1,2665.6,3.75144]
[1730315013693,0.7815,2666.1,2665.6,3.7515]
[1730315013888,0.7815,2666.1,2665.8,3.75113]
[1730315014514,0.7815,2666.1,2665.8,7.50225]
[1730315014877,0.7815,2666.1,2665.8,3.75112]
[1730315015099,0.7815,2666.1,2665.9,3.75105]
[1730315015499,0.7815,2666.1,2665.7,3.75132]
[1730315015710,0.06991168,2666.3,2666.0,3.75091]
[1730315016101,0.06991168,2666.3,2666.0,3.75087]
[1730315016432,0.06991168,2666.3,2665.9,3.751]
[1730315018746,0.06991168,2666.3,2665.7,3.75129]
[1730315019032,4.50907,2666.2,2665.5,4.52194583]
[1730315019234,0.06991168,2666.1,2665.5,3.75154]
[1730315019444,0.7584,2666.0,2665.5,3.75154]
[1730315019601,0.06991168,2665.9,2665.5,3.75154]
[1730315020131,0.06991168,2665.9,2665.5,7.50311]
[1730315020704,0.7584,2666.0,2665.6,3.75139]
[1730315021107,0.7584,2666.0,2665.5,4.89583083]
[1730315021442,0.82831168,2666.0,2665.5,4.89583083]
[1730315021615,0.06991168,2666.2,2665.8,3.75109]
[1730315021811,0.06991168,2666.2,2665.7,3.75125]
[1730315022011,0.06991168,2666.2,2665.8,3.7512]
[1730315022211,0.06991168,2666.2,2665.9,3.75107]
[1730315022930,0.06991168,2666.2,2665.7,4.61603908]
[1730315023140,3.62016989,2666.1,2665.3,0.1290983]
[1730315023305,3.75178,2665.4,2665.3,0.1290983]
[1730315023511,3.75178,2665.4,2665.3,4.1290983]
[1730315023512,4.60319168,2665.4,2665.3,4.1290983]
[1730315023711,0.85141168,2665.4,2665.3,4.1290983]
[1730315024315,3.75304,2664.5,2664.4,0.005]
[1730315024519,8.15190989,2664.5,2664.4,0.005]
[1730315025340,4.39886989,2664.5,2664.4,0.005]
[1730315025640,0.7787,2664.5,2664.4,0.005]
[1730315025941,0.7787,2664.8,2664.4,0.005]
[1730315026152,0.06991168,2664.7,2664.4,0.005]
[1730315027531,7.37320989,2664.5,2664.4,0.005]
[1730315027707,7.44312157,2664.5,2664.4,0.005]
[1730315028042,8.22002157,2664.5,2664.4,0.005]
[1730315028245,8.22002157,2664.5,2664.2,0.005]
[1730315028246,7.30333,2664.3,2664.2,0.005]
[1730315028465,7.37324168,2664.3,2664.2,0.005]
[1730315029245,7.57864168,2664.3,2664.2,0.005]
[1730315029411,4.50873,2664.3,2664.2,0.005]
[1730315029609,4.57864168,2664.3,2664.2,0.005]
[1730315033443,0.82531168,2664.3,2664.2,0.005]
[1730315033788,0.7765,2664.7,2664.2,0.005]
[1730315034064,0.06991168,2664.6,2664.2,0.005]
[1730315034638,3.82282168,2664.6,2664.2,0.005]
[1730315034839,3.75304,2664.5,2664.2,0.005]
[1730315035075,3.82311168,2664.4,2664.2,0.005]
[1730315036945,0.06991168,2664.4,2664.2,0.005]
[1730315037138,0.06991168,2664.5,2664.2,0.005]
[1730315037559,3.82304168,2664.5,2664.2,0.005]
[1730315038267,0.06991168,2664.5,2664.2,0.005]
[1730315038442,3.82287168,2664.6,2664.2,0.005]
[1730315041046,0.06991168,2664.6,2664.2,0.005]
[1730315041590,0.06991168,2664.6,2664.3,3.75331]
[1730315042244,0.06991168,2664.6,2664.2,0.005]
[1730315042441,0.06991168,2664.6,2664.2,4.51743]
[1730315042660,0.06991168,2664.6,2664.2,0.7641]
[1730315042859,0.06991168,2664.6,2664.4,3.75306]
[1730315043157,0.06991168,2664.8,2664.4,3.75306]
[1730315043558,7.44271157,2664.8,2664.4,3.75306]
[1730315043786,7.44271157,2664.8,2664.2,4.51752]
[1730315043989,3.75279,2664.7,2664.2,4.51752]
[1730315044304,3.75321,2664.4,2664.2,0.005]
[1730315044503,0.06991168,2664.3,2664.2,0.005]
[1730315045060,0.06991168,2664.5,2664.2,0.005]
[1730315046198,3.82297168,2664.5,2664.2,0.005]
[1730315046661,4.59947168,2664.5,2664.2,0.005]
[1730315048357,0.06991168,2664.5,2664.2,0.005]
[1730315048661,0.7672,2665.4,2664.4,0.7683]
[1730315049015,3.75208,2665.2,2664.9,0.7683]
[1730315049191,3.75193,2665.3,2664.9,0.7683]
[1730315049390,0.06991168,2665.2,2664.7,4.54559]
[1730315049705,0.06991168,2665.2,2664.7,0.7929]
[1730315049912,0.06991168,2665.4,2665.0,3.75232]
[1730315050077,0.06991168,2665.4,2665.1,3.75216]
[1730315050777,0.06991168,2665.6,2665.3,3.75192]
[1730315050983,3.75136,2665.7,2665.3,0.8221]
[1730315051188,3.75165,2665.5,2665.1,3.7521]
[1730315051895,3.82142168,2665.6,2665.2,3.75206]
[1730315052189,3.82142168,2665.6,2665.1,3.7521]
[1730315052360,3.82142168,2665.6,2665.2,3.75202]
[1730315052558,0.06991168,2665.6,2665.2,3.75194]
[1730315052801,0.06991168,2665.6,2665.3,3.75185]
[1730315053000,3.82141168,2665.6,2665.2,3.75205]
[1730315053564,3.82141168,2665.6,2665.1,7.50421]
[1730315053804,3.82141168,2665.6,2665.1,3.7521]
[1730315054979,3.75186,2665.4,2665.0,0.8221]
[1730315055202,3.62016989,2665.7,2664.7,3.75268]
[1730315055203,3.82184168,2665.3,2664.7,3.75268]
[1730315055405,3.75213,2665.2,2664.6,0.8074]
[1730315055609,3.82211168,2665.1,2664.6,5.316335]
[1730315055766,3.82211168,2665.1,2664.6,1.563435]
[1730315055970,3.82211168,2665.1,2664.7,3.75275]
[1730315056411,0.06991168,2665.1,2664.8,3.75254]
[1730315056704,0.06991168,2665.2,2664.8,3.75254]
[1730315056912,0.06991168,2665.2,2664.7,3.75275]
[1730315057215,7.37145989,2665.8,2665.1,3.75219]
[1730315057216,4.526,2665.6,2665.1,3.75219]
[1730315057509,3.82157168,2665.5,2665.1,0.8321]
[1730315057868,0.06991168,2665.5,2665.1,0.8321]
[1730315058191,0.06991168,2665.5,2664.9,3.75241]
[1730315058392,0.06991168,2665.5,2664.9,4.205081]
[1730315058562,3.75178,2665.4,2665.0,3.75233]
[1730315058765,3.75178,2665.4,2664.9,3.75241]
[1730315059170,0.06991168,2665.4,2665.0,3.75227]
[1730315059422,3.82157168,2665.5,2665.0,3.75227]
[1730315059710,4.52842,2665.3,2664.6,3.75279]
[1730315059893,0.06991168,2665.2,2664.8,3.75256]
[1730315060277,3.82197168,2665.2,2664.8,3.75256]
[1730315060521,0.06991168,2665.2,2664.7,3.75276]
[1730315060678,0.06991168,2665.4,2664.9,0.7743]
[1730315060884,3.75171,2665.5,2664.9,0.7743]
[1730315061203,0.06991168,2665.4,2664.9,1.23450036]
[1730315061393,0.06991168,2665.5,2664.9,1.23450036]
[1730315061918,3.82155168,2665.5,2664.9,1.23450036]
[1730315062415,7.57332168,2665.5,2664.9,1.23450036]
[1730315062723,3.75164,2665.5,2664.9,1.23450036]
[1730315062916,3.75164,2665.5,2665.0,0.50621406]
[1730315063093,0.06991168,2665.4,2664.9,0.7743]
[1730315063281,3.82151168,2665.6,2665.0,0.07504022]
[1730315063479,3.82142168,2665.6,2664.9,4.52669]
[1730315064321,7.57301168,2665.6,2664.9,4.52669]
[1730315064532,3.75151,2665.6,2664.9,8.27908]
[1730315064820,3.75151,2665.6,2665.0,0.90294375]
[1730315065017,3.75151,2665.6,2665.0,0.827908]
[1730315065228,3.75151,2665.6,2664.9,4.52675]
[1730315065715,7.5031,2665.6,2664.9,4.52675]
[1730315065919,3.75144,2665.7,2664.9,8.27903]
[1730315066123,3.7765,2666.1,2665.1,4.5375]
[1730315066286,3.7515,2665.6,2665.1,0.7853]
[1730315066621,0.06991168,2666.0,2665.2,0.0750304]
[1730315066622,3.75128,2665.8,2665.2,0.0750304]
[1730315067122,3.75128,2665.8,2665.3,0.7853]
[1730315067321,3.75121,2665.8,2665.3,0.7853]
[1730315067496,0.06991168,2665.8,2665.3,0.7853]
[1730315067733,7.50288,2665.7,2665.3,0.7853]
[1730315068245,3.75144,2665.7,2665.3,0.7853]
[1730315068441,7.50289,2665.7,2665.3,0.7853]
[1730315068643,7.50287,2665.7,2665.3,0.7853]
[1730315070746,3.75165,2665.5,2665.3,0.7853]
[1730315071047,3.75227,2665.1,2664.5,3.75303]
[1730315071351,3.75276,2664.7,2664.5,4.0]
[1730315071548,3.7529,2664.6,2664.5,4.0]
[1730315072134,3.75276,2664.7,2664.4,0.7853]
[1730315074147,3.75264,2664.8,2664.4,0.7853]
[1730315074310,3.75264,2664.8,2664.4,0.86035466]
[1730315074848,3.75244,2665.0,2664.4,5.48811013]
[1730315075146,3.75253,2664.9,2664.4,5.41305547]
[1730315075522,3.75253,2664.9,2664.4,4.53835]
[1730315076357,3.75278,2664.7,2664.4,0.7853]
[1730315076557,4.39046989,2665.3,2664.4,0.7853]
[1730315076859,3.75283,2664.7,2664.4,0.7853]
[1730315077030,3.75298,2664.6,2664.4,0.7853]
[1730315077356,3.75304,2664.5,2664.2,0.7932]
[1730315077559,3.75325,2664.4,2664.2,0.7932]
[1730315077935,3.75304,2664.5,2664.2,0.7932]
[1730315078321,3.75333,2664.3,2664.2,0.005]
[1730315078722,4.59974168,2664.3,2664.2,0.005]
[1730315081473,3.82324168,2664.3,2664.2,0.005]
[1730315081649,0.06991168,2664.3,2664.2,0.005]
[1730315081834,3.82310168,2664.4,2664.2,0.005]
[1730315082788,0.7765,2664.7,2664.2,0.005]
[1730315082789,3.82297168,2664.5,2664.2,0.005]
[1730315084744,7.57611168,2664.5,2664.2,0.005]
[1730315084949,3.75306,2664.5,2664.2,0.005]
[1730315085168,0.06991168,2664.4,2664.2,0.005]
[1730315085870,3.75306,2664.5,2664.2,0.005]
[1730315086868,3.75288,2664.7,2664.2,0.005]
[1730315087173,3.75294,2664.6,2664.2,0.005]
[1730315087379,3.82285168,2664.6,2664.2,0.005]
[1730315088973,3.75294,2664.6,2664.2,0.005]
[1730315089143,3.75307,2664.5,2664.2,0.005]
[1730315089344,3.75294,2664.6,2664.2,0.005]
[1730315089653,7.57586168,2664.6,2664.2,0.005]
[1730315089865,3.75294,2664.6,2664.2,0.005]
[1730315090442,3.75294,2664.6,2664.2,3.7584]
[1730315091052,3.75294,2664.6,2664.2,0.005]
[1730315091745,3.82285168,2664.6,2664.2,0.005]
[1730315091946,3.75294,2664.6,2664.2,0.005]
[1730315093082,3.75283,2664.7,2664.3,0.8079]
[1730315094018,3.75267,2664.8,2664.3,4.56122]
[1730315094199,3.82258168,2664.8,2664.3,4.56122]
[1730315095044,3.75248,2664.9,2664.4,0.07505817]
[1730315095348,3.75278,2664.7,2664.3,5.39317]
[1730315095577,3.75278,2664.7,2664.3,5.39311]
[1730315095777,3.75263,2664.8,2664.3,9.14636]
[1730315096083,3.75263,2664.8,2664.3,8.3144]
[1730315096291,3.75251,2664.9,2664.3,0.8079]
[1730315096292,3.75306,2664.5,2664.3,0.8079]
[1730315096582,3.75304,2664.5,2664.3,0.8079]
[1730315096788,7.50592,2664.6,2664.3,0.8079]
[1730315096948,3.75305,2664.5,2664.3,0.8079]
[1730315098793,3.82284168,2664.6,2664.3,0.8079]
[1730315098960,3.75279,2664.7,2664.3,0.8079]
[1730315099891,3.75279,2664.7,2664.3,4.56115]
[1730315100098,7.50565,2664.7,2664.3,0.8079]
[1730315100396,3.75279,2664.7,2664.3,0.8079]
[1730315101195,0.06991168,2664.8,2664.3,4.56115]
[1730315101701,3.75277,2664.7,2664.3,4.56115]
[1730315102372,3.75278,2664.7,2664.3,4.56113]
[1730315102868,3.82255168,2664.8,2664.3,4.56113]
[1730315103383,3.82255168,2664.8,2664.3,8.31439]
[1730315103586,0.06991168,2664.8,2664.4,3.75317]
[1730315103796,3.7524,2665.0,2664.6,3.75289]
[1730315104684,3.82213168,2665.1,2664.6,3.75289]
[1730315105907,3.7524,2665.0,2664.4,4.56206]
[1730315106224,3.7524,2665.0,2664.5,3.75302]
[1730315106511,3.82231168,2665.0,2664.5,3.75302]
[1730315107309,3.82231168,2665.0,2664.4,5.1019599]
[1730315107511,3.82231168,2665.0,2664.6,3.75289]
[1730315108572,3.62016989,2665.5,2664.8,3.75256]
[1730315108573,3.75202,2665.3,2664.8,3.75256]
[1730315108783,4.51423,2665.6,2665.0,3.75223]
[1730315109083,3.75163,2665.6,2665.2,3.75205]
[1730315109421,7.5026,2665.8,2665.3,3.75185]
[1730315109570,0.06991168,2665.7,2665.3,3.75185]
[1730315109773,0.7626,2665.9,2665.3,0.0750303]
[1730315109992,3.75132,2665.8,2665.4,3.75173]
[1730315110412,3.82109168,2665.9,2665.4,3.75173]
[1730315110814,3.75118,2665.9,2665.5,4.56762]
[1730315110980,0.06991168,2666.0,2665.5,4.56762]
[1730315111183,0.7765,2666.4,2665.6,3.75143]
[1730315111381,3.75075,2666.2,2665.7,3.75127]
[1730315111997,3.82066168,2666.2,2665.7,3.75127]
[1730315112510,3.75086,2666.1,2665.6,3.75149]
[1730315113294,3.75086,2666.1,2665.6,8.4180185]
[1730315113618,3.75086,2666.1,2665.6,4.6665285]
[1730315113805,3.75096,2666.0,2665.6,0.9151085]
[1730315114022,3.75096,2666.0,2665.6,4.6665885]
[1730315114833,7.37140989,2665.8,2665.1,0.7995]
[1730315115126,3.75206,2665.2,2665.1,0.7995]
[1730315115414,3.75201,2665.3,2665.1,4.7995]
[1730315115793,3.75186,2665.4,2665.1,0.7995]
[1730315115989,7.50321,2665.6,2665.1,1.17246237]
[1730315116302,3.75187,2665.4,2665.1,1.17246237]
[1730315116484,3.75187,2665.4,2665.1,0.7995]
[1730315117313,3.75187,2665.4,2665.1,0.1995]
[1730315119579,3.75164,2665.5,2665.1,0.1995]
[1730315122486,3.75154,2665.6,2665.1,0.1995]
[1730315122487,3.75178,2665.4,2665.1,0.1995]
[1730315122724,7.50263,2665.8,2665.3,3.75184]
[1730315122897,3.75142,2665.7,2665.2,4.5707]
[1730315123295,3.75142,2665.7,2665.2,0.8187]
[1730315123505,3.75142,2665.7,2665.3,3.7519]
[1730315124231,3.75184,2665.4,2665.0,0.7538]
[1730315125431,3.75187,2665.4,2665.0,0.7538]
[1730315126628,3.75262,2664.8,2664.5,1.35958989]
[1730315126832,0.06991168,2664.9,2664.3,0.8325]
[1730315127043,3.75287,2664.7,2664.3,0.8325]
[1730315127196,0.06991168,2664.9,2664.3,4.58571]
[1730315127197,3.75268,2664.8,2664.3,4.58571]
[1730315127929,3.75268,2664.8,2664.3,8.798041]
[1730315128128,3.75268,2664.8,2664.4,3.75314]
[1730315128822,3.82240168,2664.9,2664.5,3.75304]
[1730315128989,3.75217,2665.2,2664.7,3.75265]
[1730315129194,3.75217,2665.2,2664.8,3.75261]
[1730315129608,3.7522,2665.1,2664.7,4.54495]
[1730315129810,3.7522,2665.1,2664.7,0.7922]
[1730315130698,3.7522,2665.1,2664.6,3.75279]
[1730315131125,7.50448,2665.1,2664.6,3.75279]
[1730315131348,3.7522,2665.1,2664.6,3.75279]
[1730315131634,7.50448,2665.1,2664.6,3.75279]
[1730315131861,3.75206,2665.2,2664.8,3.75258]
[1730315132195,0.88451168,2665.3,2664.9,0.09814553]
[1730315132399,4.63645168,2665.3,2664.9,0.09814553]
[1730315132840,3.75213,2665.2,2664.9,0.09814553]
[1730315132999,3.75221,2665.1,2664.9,0.09814553]
[1730315133200,3.75221,2665.1,2664.7,4.50487]
[1730315133412,3.75221,2665.1,2665.0,0.09805084]
[1730315133628,3.75221,2665.1,2664.7,4.50487]
[1730315133831,3.75221,2665.1,2665.0,0.09805084]
[1730315134042,3.75221,2665.1,2664.7,4.50487]
[1730315134235,3.75193,2665.3,2665.0,0.09804809]
[1730315134536,3.75193,2665.3,2664.8,3.75249]
[1730315134738,3.75206,2665.2,2665.1,0.09795202]
[1730315134905,3.75206,2665.2,2664.7,4.50495]
[1730315135102,3.75206,2665.2,2665.1,0.0979479]
[1730315135343,3.75206,2665.2,2664.7,4.50495]
[1730315135546,3.75206,2665.2,2665.1,0.0979479]
[1730315136337,3.75206,2665.2,2664.7,4.50488]
[1730315136556,3.75206,2665.2,2665.1,0.0979479]
[1730315136745,3.75206,2665.2,2664.7,4.50488]
[1730315137036,3.75193,2665.3,2664.8,3.75256]
[1730315137247,3.82184168,2665.3,2664.9,0.09813592]
[1730315137453,3.7521,2665.2,2664.9,0.09813592]
[1730315138443,3.75193,2665.3,2664.9,0.09813592]
[1730315138744,3.75215,2665.2,2664.9,0.09813592]
[1730315139734,3.75215,2665.2,2664.7,4.50495]
[1730315139936,8.22088157,2665.1,2665.0,0.09806731]
[1730315140120,3.7529,2664.6,2664.2,0.7654]
[1730315140457,3.75314,2664.5,2664.3,0.09873034]
[1730315140760,3.75319,2664.4,2664.3,0.09873034]
[1730315140911,3.75319,2664.4,2664.2,0.005]
[1730315141110,3.75319,2664.4,2664.3,0.09873034]
[1730315141340,7.37335989,2664.4,2664.3,0.09873034]
[1730315141549,3.75333,2664.3,2664.2,0.005]
[1730315141708,3.82324168,2664.3,2664.2,0.005]
[1730315142343,3.82324168,2664.3,2664.2,0.10059417]
[1730315143488,0.7786,2664.7,2664.3,3.75327]
[1730315143700,0.7786,2664.7,2664.3,4.51400642]
[1730315143987,0.7786,2664.7,2664.4,0.09540468]
[1730315144843,3.75291,2664.6,2664.4,0.09540468]
[1730315145189,3.75291,2664.6,2664.2,3.75847]
[1730315145343,4.60129168,2664.7,2664.2,3.75847]
[1730315145663,3.75293,2664.6,2664.3,0.09549942]
[1730315145872,3.75308,2664.5,2664.3,0.09549942]
[1730315146040,3.75291,2664.6,2664.2,0.005]
[1730315146241,3.75291,2664.6,2664.3,0.09549942]
[1730315146590,3.82306168,2664.5,2664.2,0.005]
[1730315146742,3.82306168,2664.5,2664.4,0.09540468]
[1730315146943,3.82306168,2664.5,2664.3,0.09549942]
[1730315147139,3.75315,2664.5,2664.4,0.09540468]
[1730315147489,3.75315,2664.5,2664.2,0.005]
[1730315147781,3.75315,2664.5,2664.4,0.09540468]
[1730315148287,7.5063,2664.5,2664.2,0.005]
[1730315148444,3.75326,2664.4,2664.2,0.005]
[1730315148640,3.75315,2664.5,2664.2,0.005]
[1730315148845,7.50633,2664.5,2664.2,0.005]
[1730315149340,3.75315,2664.5,2664.2,0.005]
[1730315149988,7.50632,2664.5,2664.2,0.005]
[1730315150282,4.58543,2664.3,2664.2,0.005]
[1730315150877,4.65534168,2664.3,2664.2,0.005]
[1730315151247,4.58543,2664.3,2664.2,0.005]
[1730315151661,4.65534168,2664.3,2664.2,0.005]
[1730315152163,3.82324168,2664.3,2664.2,0.005]
[1730315153185,3.75321,2664.4,2664.2,0.005]
[1730315153386,0.06991168,2664.3,2664.2,0.005]
[1730315153588,3.75306,2664.5,2664.2,0.005]
[1730315153773,0.06991168,2664.6,2664.2,3.75846]
[1730315154948,3.82292168,2664.6,2664.2,0.005]
[1730315155388,3.75313,2664.5,2664.2,0.005]
[1730315158395,3.82284168,2664.6,2664.2,0.005]
[1730315158770,3.82284168,2664.6,2664.2,3.75846]
[1730315159009,0.06991168,2664.6,2664.3,3.75331]
[1730315159474,0.06991168,2664.7,2664.3,3.75331]
[1730315159680,3.82275168,2664.7,2664.3,3.75331]
[1730315160084,3.75304,2664.6,2664.2,0.831215]
[1730315160408,3.82303168,2664.5,2664.2,0.831215]
[1730315160773,3.82303168,2664.5,2664.2,0.005]
[1730315161089,3.75319,2664.4,2664.3,0.09566848]
[1730315161416,3.75319,2664.4,2664.2,0.005]
[1730315161633,0.06991168,2664.3,2664.2,0.005]
[1730315162504,3.62016989,2664.7,2664.2,0.005]
[1730315162505,3.75303,2664.6,2664.2,0.005]
[1730315162810,0.06991168,2664.5,2664.2,0.005]
[1730315164491,3.82298168,2664.5,2664.2,0.005]
[1730315166299,3.75325,2664.4,2664.2,0.005]
[1730315166498,0.06991168,2664.3,2664.2,0.005]
[1730315167614,0.06991168,2664.5,2664.2,3.75844]
[1730315168411,3.82297168,2664.5,2664.2,0.005]
[1730315170609,3.75333,2664.3,2664.2,0.005]
[1730315170777,3.82324168,2664.3,2664.2,0.005]
[1730315171179,3.75333,2664.3,2664.2,0.005]
[1730315171600,4.63864168,2664.3,2664.2,0.005]
[1730315172491,8.18864168,2664.3,2664.2,0.005]
[1730315172702,8.11873,2664.3,2664.2,0.005]
[1730315174190,7.57873,2664.3,2664.2,0.005]
[1730315174398,8.12873,2664.3,2664.2,0.005]
[1730315176796,11.74889989,2664.3,2664.2,1e-05]
[1730315177189,8.12873,2664.3,2664.2,1e-05]
[1730315177984,11.74889989,2664.3,2664.2,1e-05]
[1730315178325,8.12873,2664.3,2664.2,1e-05]
[1730315178500,11.74889989,2664.3,2664.2,1e-05]
[1730315178680,8.12873,2664.3,2664.2,1e-05]
[1730315179493,3.75527,2663.0,2662.7,0.7652]
[1730315179823,3.75455,2663.5,2662.7,0.7652]
[1730315179824,3.82503168,2663.1,2662.7,0.7652]
[1730315180030,3.82503168,2663.1,2662.8,0.09125775]
[1730315180202,0.06991168,2663.1,2662.7,1.23369183]
[1730315180411,3.82493168,2663.1,2662.8,0.09127412]
[1730315180732,3.82493168,2663.1,2662.7,1.23369183]
[1730315180733,0.06991168,2663.1,2662.7,1.23369183]
[1730315180889,0.06991168,2663.1,2662.9,0.09117927]
[1730315181231,0.06991168,2663.2,2662.9,0.09117927]
[1730315181597,3.82479168,2663.2,2662.9,0.09117927]
[1730315181805,0.06991168,2663.2,2662.9,0.09117927]
[1730315182117,7.58433,2663.8,2663.2,3.75481]
[1730315182320,0.06991168,2663.7,2663.3,3.75472]
[1730315182620,0.06991168,2663.7,2663.3,3.84551995]
[1730315182828,3.82383168,2663.9,2663.5,0.8271]
[1730315183031,3.82383168,2663.9,2663.6,0.09053328]
[1730315183230,3.75405,2663.8,2663.6,0.09053328]
[1730315183521,0.06991168,2663.7,2663.6,0.09053328]
[1730315183725,3.75386,2664.0,2663.6,0.09053328]
[1730315183726,0.06991168,2663.9,2663.6,0.09053328]
[1730315184734,8.17763989,2663.7,2663.6,0.09053328]
[1730315185024,3.75462,2663.4,2662.9,4.549]
[1730315185237,0.06991168,2663.3,2663.0,0.08798184]
[1730315185889,0.06991168,2663.5,2663.1,3.75495]
[1730315186122,0.06991168,2663.5,2663.2,3.84265218]
[1730315186395,0.06991168,2663.5,2663.2,0.08779218]
[1730315186697,0.06991168,2663.7,2663.3,4.57546]
[1730315186916,0.06991168,2663.8,2663.4,3.84212165]
[1730315187231,0.06991168,2663.8,2663.6,3.75431]